Workbook

Sheet tableau d'armée
B2: DATE : | D2: 2013-11-20 | W2: tableau de calcul perso
B4: Prévision de ponte : (notez si dessous) | D4: pourcentage de votre armée sur 100% JSN (à titre d'indication) | F4: Actuellement j'ai : (notez si dessous) | G4: Je lance une ponte de : (notez si dessous) | M4: dénomination : | O4: TOTAL FINAL APRES PONTE | Q4: idéal de ponte (selon i-sork) -Début de serveur- Chasseur : Sur 100% de JSN 80 à 90% de JS 20 à 30% d'ARTI | W4: calcul perso : | Y4: sur | Z4: soit
B5: 0 | D5: =100 -> 100 | E5: % | F5: 167923 | G5: 0 | M5: jeunes Soldate naines | O5: =SUM(F5:G5) -> 167923 | W5: JSN = | Y5: 1 | Z5: =O5 -> 167923
B6: 0 | D6: =O6*100/O5 -> 23.21837985 | E6: % | F6: 38989 | G6: 0 | M6: Soldates Naines | O6: 38989 | W6: vous devez pondre
B7: 0 | D7: =O7*100/O5 -> 4.908797485 | E7: % | F7: 8243 | G7: 0 | M7: Naines d'Elites | O7: 8243 | W7: =Z7-W22 -> 105909.7 | Y7: 0.9 | Z7: =Z5*90/100 -> 151130.7
B8: 27286 | D8: =O8*100/O5 -> 63.75064762 | E8: % | F8: 107052 | G8: 0 | M8: Jeunes Soldates | O8: 107052 | W8: =Z8-W22 -> 89117.4 | Y8: 0.8 | Z8: =Z5*80/100 -> 134338.4
B9: 0 | D9: =F9*100/O5 -> 11.59757746 | E9: % | F9: 19475 | G9: 0 | M9: Soldates | O9: 19475 | W9: =Z9-W22 -> 72325.1 | Y9: 0.7 | Z9: =Z5*70/100 -> 117546.1
B10: 0 | D10: =O10*100/O5 -> 0 | E10: % | F10: 0 | G10: 0 | M10: Concierges | O10: 0 | W10: =Z10-W22 -> 55532.8 | Y10: 0.6 | Z10: =Z5*60/100 -> 100753.8
B11: 0 | D11: =O11*100/O5 -> 0 | E11: % | F11: 0 | G11: 0 | M11: Concierges d'élites | O11: 0 | W11: =Z11-W22 -> 38740.5 | Y11: 0.5 | Z11: =Z5*50/100 -> 83961.5
B12: 21948 | D12: =O12*100/O5 -> 26.92960464 | E12: % | F12: 45221 | G12: 0 | M12: Artilleuses | O12: 45221 | W12: =Z12-W22 -> 21948.2 | Y12: 0.4 | Z12: =Z5*40/100 -> 67169.2
B13: 0 | D13: =O13*100/O5 -> 8.571190367 | E13: % | F13: 14393 | G13: 0 | M13: Artilleuses d'élites | O13: 14393 | W13: =Z13-W22 -> 5155.9 | Y13: 0.3 | Z13: =Z5*30/100 -> 50376.9
B14: 0 | D14: =O14*100/O5 -> 3.283647862 | E14: % | F14: 5514 | G14: 0 | M14: Soldates d'élites | O14: =SUM(F14:G14) -> 5514 | W14: =Z14-W22 -> -11636.4 | Y14: 0.2 | Z14: =Z5*20/100 -> 33584.6
B15: 0 | D15: =O15*100/O5 -> 0 | E15: % | F15: 0 | G15: 0 | M15: Tanks | O15: 0 | W15: =Z15-W22 -> -28428.7 | Y15: 0.1 | Z15: =Z5*10/100 -> 16792.3
B16: 0 | D16: =O16*100/O5 -> 0 | E16: % | F16: 0 | G16: 0 | M16: Tanks d'élites | O16: =SUM(F16:G16) -> 0
B17: 0 | D17: =O17*100/O5 -> 0 | E17: % | F17: 0 | G17: 0 | M17: Tueuses | O17: 0
B18: 0 | D18: =O18*100/O5 -> 0 | E18: % | F18: 0 | G18: 0 | M18: Tueuses d'élites | O18: 0 | W18: LISTE DEROULANTE SI DESSOUS - je souhaite pondre de la : -
B20: mon ancienne armée sauvegarde | F20: FDF brut | H20: bonus AR | K20: ARME NIVEAU (notez si dessous) | O20: TOTAL DE FDF | Q20: diff : fdf/vie en % | T20: diff : fdf/def en % | W20: Artilleuses | AA20: <=
B21: 0 | C21: jeunes Soldate naines | F21: =(O5*3)+(O6*5)+(O7*7)+(O8*10)+(O9*15)+(O10*1)+(O11*1)+(O12*30)+(O13*35)+(O14*24)+(O15*55)+(O16*80)+(O17*50)+(O18*55) -> 4111781 | H21: (+ | I21: =O21-F21 -> 4522959.1 | J21: ) | K21: 11 | O21: =F21*(10+K21)/10 -> 8634740.1 | Q21: =((O21-O24)/O24)*100 -> -12.82262594 | R21: % | T21: =((O21-O27)/O27)*100 -> 44.70006042 | U21: % | AA21: <=
B22: 0 | C22: Soldates Naines | W22: =IF(W20="","",VLOOKUP(W20,'tableau d''armée'!M5:O18,3,0)) -> 45221
B23: 0 | C23: Naines d'Elites | F23: VIE brut | H23: bonus BOU | K23: BOUCLIER NIVEAU (notez si dessous) | O23: TOTAL DE VIE en attaque | Q23: diff : vie/fdf en % | T23: diff : vie/def en %
B24: 0 | C24: Jeunes Soldates | F24: =(O5*8)+(O6*10)+(O7*13)+(O8*16)+(O9*20)+(O10*30)+(O11*40)+(O12*10)+(O13*12)+(O14*27)+(O15*35)+(O16*50)+(O17*50)+(O18*55) -> 4716569 | H24: (+ | I24: =O24-F24 -> 5188225.9 | J24: ) | K24: 11 | O24: =F24*(10+K24)/10 -> 9904794.9 | Q24: =((O24-O21)/O21)*100 -> 14.70866274 | R24: % | T24: =((O24-O27)/O27)*100 -> 65.9835043 | U24: %
B25: 0 | C25: Soldates
B26: 0 | C26: Concierges | F26: DEFENSE brut | H26: bonus AR | O26: TOTAL DEFENSE | Q26: diff : def/fdf en % | T26: diff : def/ vie en %
B27: 0 | C27: Concierges d'élites | F27: =(O5*2)+(O6*4)+(O7*6)+(O8*9)+(O9*14)+(O10*25)+(O11*35)+(O12*15)+(O13*18)+(O14*23)+(O15*1)+(O16*1)+(O17*50)+(O18*55) -> 2841589 | H27: (+ | I27: =O27-F27 -> 3125747.9 | J27: ) | O27: =F27*(10+K21)/10 -> 5967336.9 | Q27: =((O27-O21)/O21)*100 -> -30.89152851 | R27: % | T27: =((O27-O24)/O24)*100 -> -39.7530493 | U27: %
B28: 0 | C28: Artilleuses
B29: 0 | C29: Artilleuses d'élites | F29: TOTAL DE FOURMIS | Q29: DOME (notez si dessous) | T29: LOGE (notez si dessous)
B30: 0 | C30: Soldates d'élites | F30: =SUM(O5:O18) -> 406810 | Q30: 6 | T30: 10
B31: 0 | C31: Tanks | O31: i-sork 2013
B32: 0 | C32: Tanks d'élites | F32: RESUME (si vous devez envoyer ces informations copiez/collez la zone blanche et envoyez par mp -ATTENTION REVELER SON ARMEE COMPORTE UN RISQUE restez vigilant-) | Q32: Bonus de bouclier | T32: Bonus de bouclier
B33: 0 | C33: Tueuses | P33: + | Q33: =Q36-O24 -> 1886627.6 | S33: + | T33: =T36-O24 -> 8489824.2
B34: 0 | C34: Tueuses d'élites
F35: date : | I35: =D2 -> 2013-11-20 | Q35: TOTAL DE VIE EN DOME | T35: TOTAL DE VIE EN LOGE
B36: fdf notez ici | C36: vie notez ici | F36: Vous avez actuellement un total de fourmis de : | Q36: =F24*(1+0.1*K24+0.1+0.05*Q30) -> 11791422.5 | T36: =F24*(1+0.1*K24+0.3+0.15*T30) -> 18394619.1
B37: 0 | C37: 0 | F37: =F30 -> 406810
B38: def notez ici | F38: Vous avez actuellement :
B39: 0 | F39: =Q41 -> 218451 | G39: ouvrières | Q39: NOMBRE D'OUVRIERES (notez si dessous)
F40: Avec un nombre total de :
Q41: 218451
F42: =O5 -> 167923 | G42: jeunes Soldate naines-- | J42: soit | K42: =D5 -> 100 | L42: % | M42: ------- selon le ratio 100% JSN
F43: =O6 -> 38989 | G43: Soldates Naines--------- | J43: soit | K43: =D6 -> 23.21837985 | L43: % | M43: ------- selon le ratio 100% JSN
F44: 8243 | G44: Naines d'Elites---------- | J44: soit | K44: 4.908797485 | L44: % | M44: ------- selon le ratio 100% JSN | Q44: VOTRE VA
F45: 107052 | G45: Jeunes Soldates--------- | J45: soit | K45: 63.75064762 | L45: % | M45: ------- selon le ratio 100% JSN
F46: 19475 | G46: Soldates------------------ | J46: soit | K46: 11.59757746 | L46: % | M46: ------- selon le ratio 100% JSN | Q46: 9
F47: 0 | G47: Concierges--------------- | J47: soit | K47: 0 | L47: % | M47: ------- selon le ratio 100% JSN
F48: 0 | G48: Concierges d'élites----- | J48: soit | K48: 0 | L48: % | M48: ------- selon le ratio 100% JSN
F49: 45221 | G49: Artilleuses---------------- | J49: soit | K49: 26.92960464 | L49: % | M49: ------- selon le ratio 100% JSN | Q49: VOTRE VC
F50: 14393 | G50: Artilleuses d'élites------ | J50: soit | K50: 8.571190367 | L50: % | M50: ------- selon le ratio 100% JSN
F51: 5514 | G51: Soldates d'élites-------- | J51: soit | K51: 3.283647862 | L51: % | M51: ------- selon le ratio 100% JSN | Q51: 10
F52: 0 | G52: Tanks --------------------- | J52: soit | K52: 0 | L52: % | M52: ------- selon le ratio 100% JSN
F53: 0 | G53: Tanks d'élites------------ | J53: soit | K53: 0 | L53: % | M53: ------- selon le ratio 100% JSN
F54: 0 | G54: Tueuses ------------------ | J54: soit | K54: 0 | L54: % | M54: ------- selon le ratio 100% JSN | Q54: VOTRE TDP
F55: 0 | G55: Tueuses d'élites--------- | J55: soit | K55: 0 | L55: % | M55: ------- selon le ratio 100% JSN
Q56: 0.34
F57: Vous avez une arme de niveau : | I57: =K21 -> 11
F58: Vous avez un bouclier de niveau : | I58: =K24 -> 11
F59: Vous avez un Dôme de niveau : | I59: =Q30 -> 6
F60: Vous avez une Loge Impèriale de niveau : | I60: =T30 -> 10
F62: Vous avez une bonus de vie en Dôme de : | H62: =Q33 -> 1886627.6
F63: soit un total de vie en dôme de : | H63: =Q36 -> 11791422.5
F64: Vous avez un bonus de vie en Loge de : | H64: =T33 -> 8489824.2
F65: soit un total de vie en loge de : | H65: =T36 -> 18394619.1
F67: Vous avez une force de frappe brut de : | H67: =F21 -> 4111781
F68: Vous avez une vie brut de : | H68: =F24 -> 4716569
F69: Vous avez une force de défense brut de : | H69: =F27 -> 2841589
F71: A cela s'ajoute :
F73: Le bonus d'arme en force de frappe de : | I73: =I21 -> 4522959.1
F74: Le bonus d'arme en défense de : | I74: =I27 -> 3125747.9
F75: Le bonus de bouclier en vie de : | I75: =I24 -> 5188225.9
F77: Soit :
F79: Une force de frappe totale de : | I79: =O21 -> 8634740.1
F80: Ce qui représente : | I80: =Q21 -> -12.82262594 | J80: % | K80: de différence, entre, la force de frappe et la vie
F81: Aussi : | I81: =T21 -> 44.70006042 | J81: % | K81: de différence, entre, la force de frappe et la force de défense
F83: Une vie totale de : | I83: =O24 -> 9904794.9
F84: Ce qui représente : | I84: =Q24 -> 14.70866274 | J84: % | K84: de différence, entre, la vie et la force de frappe
F85: Aussi : | I85: =T24 -> 65.9835043 | J85: % | K85: de différence, entre, la vie et la force de défense
F88: Une force de défense totale de : | I88: =O27 -> 5967336.9
F89: Ce qui représente : | I89: =Q27 -> -30.89152851 | J89: % | K89: de différence, entre la force de défense et la force de frappe
F90: Aussi : | I90: =T27 -> -39.7530493 | J90: % | K90: de différence, entre la force de défense et la vie
F92: Votre niveau de vitesse d'Attaque est de : | I92: =Q46 -> 9
F93: votre niveau de Vitesse de Chasse est de : | I93: =Q51 -> 10
F95: Votre temps de ponte est d'actuellement : | I95: =Q56 -> 0.34 | J95: pour 1 ouvrière

Sheet Feuil1
M5: jeunes Soldate naines | N5: ='tableau d''armée'!O5 -> 167923
M6: Soldates Naines | N6: ='tableau d''armée'!O6 -> 38989
M7: Naines d'Elites | N7: ='tableau d''armée'!O7 -> 8243
M8: Jeunes Soldates | N8: ='tableau d''armée'!O8 -> 107052
M9: Soldates | N9: ='tableau d''armée'!O9 -> 19475
M10: Concierges | N10: ='tableau d''armée'!O10 -> 0
M11: Concierges d'élites | N11: ='tableau d''armée'!O11 -> 0
M12: Artilleuses | N12: ='tableau d''armée'!O12 -> 45221
M13: Artilleuses d'élites | N13: ='tableau d''armée'!O13 -> 14393
M14: Soldates d'élites | N14: ='tableau d''armée'!O14 -> 5514
M15: Tanks | N15: ='tableau d''armée'!O15 -> 0
M16: Tanks d'élites | N16: ='tableau d''armée'!O16 -> 0
M17: Tueuses | N17: ='tableau d''armée'!O17 -> 0
M18: Tueuses d'élites | N18: ='tableau d''armée'!O18 -> 0
